Cogmind - Beta 14 @@@ ROGUE MODE // 2024.11.24 @ 17:11:21 Player: Fangrelle Result: Destroyed by 7U-FKN(R) with Subdweller Beam Cannon Performance ------------- Evolutions (0) 0 Regions Visited (2) 400 Robots Destroyed (22) 110 Value Destroyed (516) 516 Prototype IDs (11) 220 Alien Tech Used (0) 0 Bonus (0) 0 TOTAL SCORE: 1246 Bonus ------- None Cogmind --------- Core Integrity 0/250 Matter 74/300 Energy 230/250 System Corruption 0% Temperature Cool (9) Movement Walking (200) Ox1 Location -10/Subcaves Parts ------- > --- POWER (1) -------- Ion Engine > --- PROPULSION (2) --- Cargo Legs > --- UTILITY (2+2) ---- Huge Storage Unit (+) > --- WEAPON (2) ------- Particle Gun Assault Rifle > --- INVENTORY (25) --- Light Ion Engine Light Treads Light Treads Aluminum Leg Wheel Compact Wheel Disposable Heat Sink Disposable Heat Sink High-capacity Storage Unit Huge Storage Unit Visual Processing Unit Signal Interpreter Terrain Scanner Terrain Scanner ECM Suite Tractor Beam Particle Gun Assault Rifle Datajack Scrap Shield Fragment (50) Scrap Shield Fragment (47) Scrap Shield Fragment (45) Scrap Shield Fragment (40) Peak State ------------ > --- POWER ------------ Ion Engine > --- PROPULSION ------- Cargo Legs > --- UTILITY ---------- Huge Storage Unit Medium Armor Plating Medium Armor Plating > --- WEAPON ----------- Particle Gun Subdweller Beam Cannon > --- INVENTORY -------- Light Ion Engine Light Treads Light Treads Aluminum Leg Compact Wheel Disposable Heat Sink Disposable Heat Sink High-capacity Storage Unit Huge Storage Unit Visual Processing Unit Signal Interpreter Terrain Scanner Terrain Scanner ECM Suite Tractor Beam Particle Gun Assault Rifle Assault Rifle Datajack Scrap Shield Fragment Scrap Shield Fragment Scrap Shield Fragment Scrap Shield Fragment [Rating: 29] Favorites ----------- Power Light Ion Engine Engine Light Ion Engine Propulsion Light Treads Treads Light Treads Leg Cargo Legs Utility Medium Armor Plating Device ECM Suite Storage Huge Storage Unit Protection Medium Armor Plating Weapon Light Cannon Energy Gun Particle Gun Energy Cannon Subdweller Beam Cannon Ballistic Gun Assault Rifle Ballistic Cannon Light Cannon Build | -11 -10 -10 ------- Run | Yrd Mat Sub Slots Evolved . | . . . Power . | . . . Propulsion . | . . . Utility . | . . . Weapon . | . . . Parts Attached 22 | . 10 12 Power 1 | . . 1 Engine 1 | . . 1 Core . | . . . Reactor . | . . . Propulsion 5 | . 3 2 Treads 4 | . 3 1 Leg 1 | . . 1 Wheel . | . . . Hover . | . . . Flight . | . . . Utility 9 | . 5 4 Device 1 | . 1 . Storage 4 | . 3 1 Processor . | . . . Hackware . | . . . Protection 4 | . 1 3 Artifact . | . . . Weapon 7 | . 2 5 Energy Gun 3 | . . 3 Energy Cannon 1 | . . 1 Ballistic Gun 1 | . . 1 Ballistic Cannon 2 | . 2 . Launcher . | . . . Special Weapon . | . . . Impact Weapon . | . . . Slashing Weapon . | . . . Piercing Weapon . | . . . Special Melee Weapon . | . . . Unidentified Prototypes . | . . . Parts Lost 5 | . . 5 Power 1 | . . 1 Propulsion . | . . . Utility 4 | . . 4 Weapon . | . . . Highest Loss Streak 3 | . . 3 To Critical Strikes . | . . . Average Slot Usage (%) 90 | . 98 87 Engine 12 | . 14 12 Treads 17 | . 23 15 Leg 4 | . 4 4 Device 2 | . 8 . Storage 8 | . 15 5 Protection 17 | . 2 23 Energy Gun 7 | . . 9 Energy Cannon 3 | . . 5 Ballistic Cannon 14 | . 27 9 Peak Build Rating 29 | . 11 29 Average Rating 15 | . 8 17 On Entrance 7 | 6 6 11 Naked Turns . | . . . Heaviest Build 110 | 12 96 110 Greatest Support 55 | 20 40 55 Greatest Overweight (x) 4 | . 4 2 Average Overweight (x) . | . 1 . Largest Inventory Capacity 25 | . 25 25 Average Capacity 16 | . 21 14 Most Carried 24 | . 24 24 Average Carried 14 | . 15 13 Final Capacity 25 | 8 25 25 Final Carried 24 | 6 24 23 Class Distribution -------------------- 100% | Mutant Dominant Class ---------------- Mutant | -10/Materials Mutant | -10/Subcaves Resources | -11 -10 -10 ----------- Run | Yrd Mat Sub Matter Collected 687 | 197 153 337 Remotely . | . . . Salvage Created 517 | . 257 260 Parts 36 | . 17 19 Haulers Intercepted 1 | . 1 . Recyclers Shooed . | . . . Parts Field Recycled . | . . . Retrieved Matter . | . . . Parts Self-Destructed 13 | . . 13 Prevented . | . . . Kills | -11 -10 -10 ------- Run | Yrd Mat Sub Combat Hostiles Destroyed 20 | . 9 11 Guns 2 | . . 2 Cannons 18 | . 9 9 Classes Destroyed 7 | . 4 3 Hauler 1 | . 1 . Watcher 1 | . 1 . Swarmer 10 | . 4 6 Grunt 5 | . 5 . Sentry 1 | . . 1 Artisan 1 | . . 1 Subdweller 4 | . . 4 Best Kill Streak 3 | . 3 3 Combat Bots Only 3 | . 3 3 Max Kills in Single Turn 1 | . 1 1 Gunslinging . | . . . Exploded . | . . . Melee . | . . . Uniques/NPCs Destroyed . | . . . Combat | -11 -10 -10 -------- Run | Yrd Mat Sub Hostile Shots Fired 132 | . 29 103 Missed 46 | . 9 37 Damage Taken 1377 | . 198 1179 Core 255 | . 23 232 Absorbed by Shields . | . . . Core Remaining (%) 100 | 100 . . Volleys Fired 124 | . 22 102 Largest 2 | . 2 2 Hottest 145 | . 70 145 Shots Fired 196 | . 44 152 Gun 45 | . . 45 Cannon 151 | . 44 107 Launcher . | . . . Special . | . . . Kinetic 135 | . 44 91 Thermal 61 | . . 61 Explosive . | . . . Electromagnetic . | . . . Robot Hit Streak 17 | . 3 17 Robot Miss Streak 5 | . 3 5 Penetration Max . | . . . Secondary Targets . | . . . Shots Hit Robots 102 | . 19 83 Core Hits 29 | . 12 17 Critical Kills . | . . . Critical Parts Destroyed . | . . . Critical Strikes 5 | . 2 3 Burn 1 | . . 1 Blast 4 | . 2 2 Melee Attacks . | . . . Impact . | . . . Slashing . | . . . Piercing . | . . . Sneak Attacks . | . . . Combat Hostiles . | . . . Follow-up Attacks . | . . . Damage Inflicted 1776 | . 360 1416 Guns 390 | . . 390 Cannons 1367 | . 358 1009 Explosions . | . . . Melee . | . . . Ramming 19 | . 2 17 Kinetic 1045 | . 358 687 Thermal 712 | . . 712 Explosive . | . . . Electromagnetic . | . . . Impact . | . . . Slashing . | . . . Piercing . | . . . Highest Corruption . | . . . Average Corruption . | . . . Corruption Purged . | . . . Corruption Blocked . | . . . Overload Shots . | . . . Overflow Damage 16 | . . 16 Projectiles 16 | . . 16 Explosions . | . . . Melee . | . . . Knockbacks 7 | . 5 2 Impact . | . . . Kinetic 7 | . 5 2 Secondary . | . . . Self-Inflicted Damage . | . . . Shots . | . . . Rammed 4 | . 1 3 Targets Rammed 4 | . 1 3 Kicked . | . . . Crushed . | . . . Highest Temperature 264 | . 63 264 Average Temperature 45 | . 21 70 Received Heat Transfer 258 | . 66 192 Effects 1 | . . 1 Interference 1 | . . 1 Siege Activations . | . . . Robots Corrupted . | . . . Combat Hostiles . | . . . Parts Fried . | . . . Impact Corruptions . | . . . Robots Melted . | . . . Combat Hostiles . | . . . Parts Melted 1 | . . 1 Heat Transferred 1332 | . . 1332 Parts Sabotaged . | . . . Parts Stolen . | . . . Parts Stripped . | . . . Power Chain Reactions . | . . . Alert | -11 -10 -10 ------- Run | Yrd Mat Sub Peak Influence 179 | . 179 . Initial . | . . . Average 48 | . 48 . Maximum Alert Level . | . . . Low Security (%) 100 | . 100 . Level 1 . | . . . Level 2 . | . . . Level 3 . | . . . Level 4 . | . . . Level 5 . | . . . High Security . | . . . Max Security . | . . . Squads Dispatched 1 | . 1 . Investigation . | . . . Extermination . | . . . Reinforcement 1 | . 1 . Assault . | . . . Garrison . | . . . Intercept . | . . . Searches Triggered . | . . . Construction Impeded . | . . . Haulers Reinforced . | . . . Active Scanning Responses . | . . . Cargo Convoy Interrupts . | . . . Stealth | -11 -10 -10 --------- Run | Yrd Mat Sub Distress Signals 2 | . 2 . Communications Jammed . | . . . Distress Signals . | . . . Times Spotted 35 | . 21 14 Peak Tracking Total 5 | . 5 3 Tactical Retreats 2 | . 2 . Traps | -11 -10 -10 ------- Run | Yrd Mat Sub Traps Triggered . | . . . Indirectly . | . . . Trap Hack Attempts . | . . . Triggered . | . . . Disarmed . | . . . Reprogrammed . | . . . Reused . | . . . Traps Extracted . | . . . Installed 1 | . . 1 Triggered . | . . . Machines | -11 -10 -10 ---------- Run | Yrd Mat Sub Machines Disabled 2 | . 1 1 Max in Single Turn 1 | . 1 1 Machines Repaired . | . . . Machines Dismantled . | . . . Machines Sabotaged . | . . . Overloaded Fab Kills . | . . . Hacking | -11 -10 -10 --------- Run | Yrd Mat Sub Machines Accessed 10 | . 8 2 Terminals 6 | . 6 . Fabricators . | . . . Repair Stations . | . . . Recycling Units 2 | . 2 . Scanalyzers . | . . . Garrison Access . | . . . Total Hacks 35 | . 21 14 Successful 23 | . 9 14 Failed 12 | . 12 . Catastrophic 1 | . 1 . Database Lockouts . | . . . Manual 17 | . 17 . Terminals 17 | . 17 . Fabricators . | . . . Repair Stations . | . . . Recycling Units 4 | . 4 . Scanalyzers . | . . . Garrison Access . | . . . Terminal Hacks 15 | . 1 14 Record 13 | . . 13 Robot Analysis 1 | . 1 . Derelict Proto ID Bank 1 | . . 1 Fabricator Hacks . | . . . Repair Station Hacks . | . . . Recycling Unit Hacks 2 | . 2 . Retrieve Components 2 | . 2 . Scanalyzer . | . . . Garrison Access Hacks . | . . . Unauthorized Hacks 6 | . 6 . Terminals 6 | . 6 . Assimilate 2 | . 2 . Botnet 3 | . 3 . Operators 1 | . 1 . Fabricators . | . . . Repair Stations . | . . . Recycling Units . | . . . Scanalyzers . | . . . Garrison Access . | . . . Data Cores Recovered . | . . . Used . | . . . Hacking Detections 7 | . 7 . Full Trace Events . | . . . Feedback Events . | . . . Feedback Blocked . | . . . Robot Schematics Acquired . | . . . Robots Built . | . . . Authchips . | . . . Time . | . . . Total Robot Build Rating . | . . . Part Schematics Acquired . | . . . Parts Built . | . . . Authchips . | . . . Time . | . . . Total Part Build Rating . | . . . Parts Repaired . | . . . Time . | . . . Parts Recycled . | . . . Recycled Matter . | . . . Retrieved Matter . | . . . Retrieved Components 1 | . 1 . Parts Scanalyzed . | . . . Part Schematics Acquired . | . . . Parts Damaged . | . . . Bothacking | -11 -10 -10 ------------ Run | Yrd Mat Sub Used RIF Installer . | . . . Robots Hacked . | . . . Non-combat . | . . . Combat . | . . . Robot Hacks Applied . | . . . Relay Couplers Released . | . . . Fabnet Peak Effective % . | . . . Robots Rewired . | . . . Allies Hacked . | . . . Hacks Repelled . | . . . Allies | -11 -10 -10 -------- Run | Yrd Mat Sub Total Allies . | . . . Largest Group . | . . . Highest-Rated Group . | . . . Highest-Rated Ally . | . . . Total Orders . | . . . Ally Attacks . | . . . Total Damage . | . . . Kills . | . . . Allies Corrupted . | . . . Allies Melted . | . . . Intel | -11 -10 -10 ------- Run | Yrd Mat Sub Robot Analysis Total 1 | . 1 . Derelict Logs Recovered 1 | . . 1 Drone Launches . | . . . Drone Recoveries . | . . . Exploration | -11 -10 -10 ------------- Run | Yrd Mat Sub Turns Passed 5850 | . 1521 4329 Spaces Moved 2720 | 1 521 2198 Core . | . . . Treads 1692 | . 460 1232 Legs 1028 | 1 61 966 Wheels . | . . . Hover . | . . . Flight . | . . . Fastest Speed 120 | 120 120 130 Average Speed 197 | 120 261 182 Slowest Speed 400 | 120 400 320 Overloaded Moves . | . . . Propulsion Burnouts . | . . . Robots Hopped . | . . . Cave-ins Triggered . | . . . Exploration Rate (%) 54 | 2 85 76 Regions Visited 2 Branch Regions 1 Pre-discovered Areas 1 | . . 1 Known Exits Taken . | . . . Unknown Exits Taken 2 | 1 1 . Scrap Searched . | . . . Spaces Dug . | . . . Terrain Destroyed 2 | . . 2 Melee . | . . . Projectile 2 | . . 2 AOE . | . . . Terrain Rammed . | . . . Walls Destroyed . | . . . Machines Disabled . | . . . Actions | -11 -10 -10 --------- Run | Yrd Mat Sub Total 2994 | . 636 2358 Wait 57 | . 57 . Move 2718 | . 520 2198 Hop . | . . . Pick Up 47 | . 19 28 Fast Attach 10 | . 4 6 Attach 5 | . 2 3 Detach 2 | . 2 . Swap 7 | . 4 3 Drop 19 | . 5 14 Fire 124 | . 22 102 Melee . | . . . Ram . | . . . Kick . | . . . Crush 4 | . 1 3 Escape Stasis . | . . . Rewire . | . . . Trap 1 | . . 1 Miscellaneous . | . . . Route ------- -11/Scrapyard -10/Materials (discovered 5 exits: [*Mat x3] / [*Min] / *Sub) -10/Subcaves (discovered 3 exits: [*Mat x2] / Rec) History --------- Turn | Location | Event 1 | -11/Scrapyard | Discovered new exit (range 0) 1 | -11/Scrapyard | Entered Materials 300 | -10/Materials | Build established: Mutant 433 | -10/Materials | Discovered new exit (range 9) 767 | -10/Materials | Discovered new exit (range 5) 817 | -10/Materials | Discovered new exit (range 15) 999 | -10/Materials | Discovered new exit (range 8) 1091 | -10/Materials | Discovered new exit (range 9) 1522 | -10/Materials | Entered Subcaves 1630 | -10/Subcaves | A swath of the cavern ceiling suddenly collapsed 1938 | -10/Subcaves | Discovered new exit (range 16) 2243 | -10/Subcaves | Discovered new exit (range 11) 2280 | -10/Subcaves | Identified exit to Recycling 2729 | -10/Subcaves | Visited 4L-MR0's lab 3325 | -10/Subcaves | Ambushed by angry Subdweller bent on revenge 3417 | -10/Subcaves | Lost 3 parts (1p2u) 3687 | -10/Subcaves | A swath of the cavern ceiling suddenly collapsed 3937 | -10/Subcaves | Found Cargo Legs 3938 | -10/Subcaves | Attached Cargo Legs, gained temporary slots: Utility x2 4440 | -10/Subcaves | Shifting Twisted Machinery released Sub. Optics 4823 | -10/Subcaves | Visited Clippyterm 4829 | -10/Subcaves | Learned location of Section 7 (-2) 5804 | -10/Subcaves | Core integrity fell below 50% 5850 | -10/Subcaves | Core integrity fell below 20% 5851 | -10/Subcaves | Destroyed by 7U-FKN(R) with Subdweller Beam Cannon Last Messages --------------- Data stored: Recycling entrances (x1). >>Record "Tab" It looks like you're biased against spaces, I think you need more help than I can offer. >>Record "World Domination" It looks like you're trying to take over the world, would you like help? World map updated: -2/Section 7. >>Record "Optimus" It looks like you're curious about the current leader of 0bPrime. Optimus is well liked, but is certainly not being up front with the UFD as a whole. 05813_ Sub. Machine Gun melted. 05813_ H4-UXB(R) destroyed. 05813_ Med. Armor Plating destroyed. 05814_ Overheating: System interference. 05814_ Particle Gun temporarily disabled. 05823_ Subatomizers dissect the Disposable Heat Sink. 05830_ Med. Armor Plating destroyed. 05835_ Subatomizers dissect the Disposable Heat Sink. 05843_ 7U-FKN(R) affixes Scrap Shield Fragment to Scrap Shield. 05847_ Subatomizers dissect the Disposable Heat Sink. 05847_ Sub. Beam Cannon shoots sparks and powers down. 05850_ Dropped Broken Sub. Beam Cannon. Map ----- +----------------------------------------------------+ | ???????????????????# ##???????????????????????? | | ???????????????????# ##??????????????????????? | | ???????????????????# ##?????????????????????? | | ???????????????????# ##????????????????????? | | ??????????????????## ######???????????????? | | ??????????????????# ### ## ###?????##??????? | | ??????????????????## #### ##?? #??????? | | ???????????????????## ### ### ##?????? | | ????????????????????## ### ## ####??? | | ?????????????????????## #?## #??? | | ??????????????????????# ##?### #???? | | ?????????????????????## ##??# ##???? | | ?????????????????????# #??# #????? | | ?????????????????????# ##??# #????? | | ?????????????????????# #??## ###### | | ????????????????????## #?## ####### ## | | ????????????????????# #?# #####?# ## | | ????????????????????# #?# ## #### ##?# | | ????????????????????# #?# ### | | ????????????????????# #?## ### ## | | ????????????????????# ###??####?## | | ????????????????????# #??###### ## # # ## | | ????????????????????# ### ##### #? | | ???????????????????## #?# ## | | ???????????????????# ## ????# ## | | ???????????????????# ; @ ##?????????## ### | | ???????????????????# R ;;;##??????????## ##?# | | ???????????????????## %;####??????????## ##?# | | ???????????????????# ?????????????## ### | | ???????????????????# ?????????????#" ## | | ???????????????????## ????????????##"" ## #? | | ????????????????????# ????????????# """## #? | | ????????????????????# ????????????# """ #? | | ????????????????????# #????????????# "" ##? | | ????????????????????###?????????????# ##?? | | ???????????????????????????????????#"""## ###??? | | ??????????????????????????????????# """"# #????? | | ?????????????????????????????????# """"## #????? | | ????????????????????????????????" ""#######????? | | ???????????????????????????????""" !##??????????? | | ???????????????????????????????""" ??????????????? | | ????????????????????????????????##???????????????? | | ?????????????????????????????????????????????????? | | ?????????????????????????????????????????????????? | | ?????????????????????????????????????????????????? | | ?????????????????????????????????????????????????? | | ?????????????????????????????????????????????????? | | ?????????????????????????????????????????????????? | | ?????????????????????????????????????????????????? | | ?????????????????????????????????????????????????? | +----------------------------------------------------+ Best States ------------- Heat Dissipation 25 Energy Generation 10 Energy Capacity 250 Matter Stores 287 Matter Capacity 300 Sight Range 16 Terrain Scan Density 10 ECM Strength 1 Armor Coverage 450 Evasion (%) 55 Recoil Reduction 2 Item Schematics ----------------- None Robot Schematics ------------------ None Fabricated ------------ Nothing Alien Tech Used ----------------- None Achievements -------------- None Challenges ------------ None Game ------ Seed ServoThunderBasin Manual? 0 Play Time 00:16:09 Cumulative 134.8 hours Start 2024.11.24 @ 16:55:26 End 2024.11.24 @ 17:11:21 Sessions 1 Manual Loads 0 Difficulty Rogue Special Mode None Game No. 261 Rogue 261 Adventurer 0 Explorer 0 Win Type - Total 0 Types 0/0/0/0/0/0/0/0/0 Lore% 43 Gallery% 41 Achievement% 36 Wizard Run 0 Options --------- Layout 0 ASCII 0 Keyboard 0 Movement Mouse Keybinds 0 Fullscreen 1 Font 24/Smallcaps Map View 91x25 Zoom Use 95% Tactical HUD 1 Map Filters NONE Filters NONE Steam 1 RUN: 0d485137-74e1-4193-a895-71fee0867585